Workbook

Sheet cedolare secca
A1: TASSAZIONE DEGLI AFFITTI USO ABITATIVO: PROGRESSIVA O CON CEDOLARE SECCA PER CIASCUN ANNO CONTRATTUALE (Si ipotizza: a) un contratto a canone non concordato, anni 4+4 (cedolare secca 21%); b) l'incremento Istat, l'addizionale regionale e comunale nel periodo contrattuale sempre uguale; c) l'aliquota fiscale progressiva massima del locatore sempre la stessa per tutto il periodo di contratto) (DIGITARE SOLO LE CELLE BIANCHE)
A2: Locatore: | E2: Inquilino: | H2: canone annuo (compresa istat eventualmente maturata fino all'annualità di canone precedente) | J2: totale | K2: quota di possesso
A3: parametri per il calcolo
A4: % di possesso dell'immobile da parte del locatore | F4: (e) | G4: 1
A5: esercizio fiscale cui si riferisce il canone annuo indicato | F5: (f) | G5: 2014
A6: aliquota fiscale massima del locatore nel periodo di contratto: | F6: (g) | G6: 0.38
A7: percentuale imposta di registro | F7: (h) | G7: 0.02 | H7: abitazione | I7: box
A8: percentuale incremento annuo Istat atteso da applicare al canone | F8: (i) | G8: 0.01 | H8: 6600 | J8: =SUM(H8:H8) -> 6600 | K8: =$J8*$G4 -> 6600
A9: aliquota imposta cedolare secca da applicare | F9: (l) | G9: 0.21 | H9: (a) | I9: (b) | J9: (c=a+b) | K9: (d)
A10: perc.di riduzione canone di cui tener conto nella dichiar.dei redditi | F10: (m) | G10: 0.05 | H10: Aliquote e scaglioni di reddito:
A11: bollo dovuto per la registrazione del contratto (solo per il 1° anno) | F11: (n) | G11: 48
A12: addizionale regionale | F12: (o) | G12: 0.0203 | H12: aliquote: | I12: 0.23 | J12: 0.27 | K12: 0.38 | L12: 0.41 | M12: 0.43
A13: addizionale comunale | F13: (p) | G13: 0.008 | H13: scaglioni (fino a): | I13: 15000 | J13: 28000 | K13: 55000 | L13: 75000 | M13: (oltre 75.000)
F14: annualità di canone
F15: 1° anno | G15: 2° anno | H15: 3° anno | I15: 4° anno | J15: 5° anno | K15: 6° anno | L15: 7° anno | M15: 8° anno
A16: ="canone intero, senza la riduzione del " & TEXT($G$10,"00%") -> canone intero, senza la riduzione del 05% | E16: [q=d*(1+i)n] | F16: =$K8*(1+$G8)^0 -> 6600 | G16: =$K8*(1+$G8)^1 -> 6666 | H16: =$K8*(1+$G8)^2 -> 6732.66 | I16: =$K8*(1+$G8)^3 -> 6799.9866 | J16: =$K8*(1+$G8)^4 -> 6867.986466 | K16: =$K8*(1+$G8)^5 -> 6936.666331 | L16: =$K8*(1+$G8)^6 -> 7006.032994 | M16: =$K8*(1+$G8)^7 -> 7076.093324
A17: Incrementi Istat attesi | E17: (r=q-d) | F17: =F16-$K8 -> 0 | G17: =G16-$K8 -> 66 | H17: 132.66 | I17: 199.9866 | J17: 267.986466 | K17: 336.6663307 | L17: 406.032994 | M17: 476.0933239
A18: ="canone ridotto del " & TEXT($G$10,"00%") -> canone ridotto del 05% | E18: [s=q*(1-m)] | F18: =F16*(1-$G10) -> 6270 | G18: =G16*(1-$G10) -> 6332.7 | H18: 6396.027 | I18: 6459.98727 | J18: 6524.587143 | K18: 6589.833014 | L18: 6655.731344 | M18: 6722.288658
A19: imposta registro | E19: (t=q*h) | F19: =F16*$G7/2 -> 66 | G19: 66.66 | H19: 67.3266 | I19: 67.999866 | J19: 68.67986466 | K19: 69.36666331 | L19: 70.06032994 | M19: 70.76093324
A20: bollo | E20: (n) | F20: =IF($K8<>0,$G11,0) -> 48
A21: imposta ire dovuta | E21: (u=s*g) | F21: =F18*$G6 -> 2382.6 | G21: =G18*$G6 -> 2406.426 | H21: 2430.49026 | I21: 2454.795163 | J21: 2479.343114 | K21: 2504.136545 | L21: 2529.177911 | M21: 2554.46969
A22: addizionale regionale dovuta | E22: (v=s*o) | F22: =F18*$G12 -> 127.281 | G22: =G18*$G12 -> 128.55381 | H22: 129.8393481 | I22: 131.1377416 | J22: 132.449119 | K22: 133.7736102 | L22: 135.1113463 | M22: 136.4624598
A23: addizionale comunale dovuta | E23: (z=s*p) | F23: =F18*$G13 -> 50.16 | G23: =G18*$G13 -> 50.6616 | H23: 51.168216 | I23: 51.67989816 | J23: 52.19669714 | K23: 52.71866411 | L23: 53.24585075 | M23: 53.77830926
A24: costo per ciascun anno di contratto senza l'applicazione della cedolare secca | E24: (y=t+n+u+v+z) | F24: =SUM(F19:F23) -> 2674.041 | G24: =SUM(G19:G23) -> 2652.30141 | H24: 2678.824424 | I24: 2705.612668 | J24: 2732.668795 | K24: 2759.995483 | L24: 2787.595438 | M24: 2815.471392
A25: imposta cedolare secca | E25: (j=q*i) | F25: =$F16*$G9 -> 1386 | G25: =$F16*$G9 -> 1386 | H25: 1386 | I25: 1386 | J25: 1386 | K25: 1386 | L25: 1386 | M25: 1386
A26: differenza Istat non riscossa | E26: (w=q-d) | F26: =F16-$K8 -> 0 | G26: =G16-$K8 -> 66 | H26: 132.66 | I26: 199.9866 | J26: 267.986466 | K26: 336.6663307 | L26: 406.032994 | M26: 476.0933239
A27: costo per ciascun anno di contratto con l'applicazione della cedolare secca (a+b+c+d) | E27: (k=j+w) | F27: =SUM(F25:F26) -> 1386 | G27: =SUM(G25:G26) -> 1452 | H27: 1518.66 | I27: 1585.9866 | J27: 1653.986466 | K27: 1722.666331 | L27: 1792.032994 | M27: 1862.093324
A28: Differenza tra costo con applicazione della cedolare secca e costo senza l'applicazione della cedolare secca per ciascun anno di contratto | E28: (x=k-y) | F28: =F27-F24 -> -1288.041 | G28: =G27-G24 -> -1200.30141 | H28: -1160.164424 | I28: -1119.626068 | J28: -1078.682329 | K28: -1037.329152 | L28: -995.5624438 | M28: -953.3780683
A29: Per ciascun anno la cedolare secca è conveniente rispetto alla tassazione progressiva (SI/NO)? | F29: =IF(F27<>0,IF(F27<F24,"SI","NO"),"") -> SI | G29: =IF(G27<>0,IF(G27<G24,"SI","NO"),0) -> SI | H29: SI | I29: SI | J29: SI | K29: SI | L29: SI | M29: SI
A30: Differenza tra costo totale con applicazione della cedolare secca e costo totale senza l'applicazione della cedolare secca per l'intero periodo contrattuale | K30: (sommatoria x) | M30: =SUM(F28:M28) -> -8833.084896
A31: L'applicazione della cedolare secca per l'intero periodo contrattuale è conveniente rispetto alla tassazione progressiva (SI/NO)? | M31: =IF(M30<>0,IF(M30<0,"SI","NO"),"") -> SI
